[Event "Live Chess"]
[Site "Chess.com"]
[Date "2024.06.01"]
[Round "-"]
[White "IanCalvert2"]
[Black "WorcesterYork"]
[Result "0-1"]
[WhiteElo "1600"]
[BlackElo "2501"]
[TimeControl "300"]
[EndTime "13:50:03 PDT"]
[Termination "WorcesterYork won on time"]

1. b3 {[%clk 0:04:53.2]} 1... a5 {[%clk 0:04:58.6]} 2. c4 {[%clk 0:04:50.6]}
2... a4 {[%clk 0:04:57.6]} 3. bxa4 {[%clk 0:04:48]} 3... e6 {[%clk 0:04:56.7]}
4. Nc3 {[%clk 0:04:46.7]} 4... Nf6 {[%clk 0:04:55.3]} 5. g3 {[%clk 0:04:45]}
5... Bb4 {[%clk 0:04:52.5]} 6. Bb2 {[%clk 0:04:39.9]} 6... d6 {[%clk 0:04:51.6]}
7. Bg2 {[%clk 0:04:36]} 7... Nbd7 {[%clk 0:04:50.1]} 8. Nf3 {[%clk 0:04:28.6]}
8... Nc5 {[%clk 0:04:48.8]} 9. O-O {[%clk 0:04:22]} 9... O-O {[%clk 0:04:47.5]}
10. d4 {[%clk 0:04:14.8]} 10... Bxc3 {[%clk 0:04:45.4]} 11. Bxc3 {[%clk
0:04:12.6]} 11... Nxa4 {[%clk 0:04:44.6]} 12. Qb3 {[%clk 0:04:05.4]} 12... Nxc3
{[%clk 0:04:42.8]} 13. Qxc3 {[%clk 0:04:01.8]} 13... Ra7 {[%clk 0:04:39.5]} 14.
Nd2 {[%clk 0:03:37.1]} 14... Bd7 {[%clk 0:04:37.9]} 15. Ne4 {[%clk 0:03:32.3]}
15... Nxe4 {[%clk 0:04:36.3]} 16. Bxe4 {[%clk 0:03:29.3]} 16... Qa8 {[%clk
0:04:36.2]} 17. Qc2 {[%clk 0:03:20.1]} 17... h6 {[%clk 0:04:34.1]} 18. Rfb1
{[%clk 0:03:09.5]} 18... Rb8 {[%clk 0:04:32.5]} 19. c5 {[%clk 0:02:52]} 19... d5
{[%clk 0:04:30.7]} 20. Bd3 {[%clk 0:02:50]} 20... Ra3 {[%clk 0:04:22.1]} 21. Rb3
{[%clk 0:02:34.7]} 21... Bc6 {[%clk 0:04:19.3]} 22. Qb2 {[%clk 0:02:28.1]} 22...
Ra4 {[%clk 0:04:13.8]} 23. e3 {[%clk 0:02:15.3]} 23... Qa5 {[%clk 0:04:12.7]}
24. Bb5 {[%clk 0:02:10.7]} 24... Bxb5 {[%clk 0:04:00.4]} 25. Rxb5 {[%clk
0:02:06.9]} 25... Qa6 {[%clk 0:04:00.3]} 26. Rb1 {[%clk 0:02:02.9]} 26... Rxa2
{[%clk 0:03:58.9]} 27. Qb3 {[%clk 0:01:45.1]} 27... Ra1 {[%clk 0:03:55.7]} 28.
Kg2 {[%clk 0:01:37.6]} 28... Rxb1 {[%clk 0:03:54.7]} 29. Qxb1 {[%clk 0:01:33.5]}
29... g6 {[%clk 0:03:52.4]} 30. Qb4 {[%clk 0:01:23.7]} 30... Kg7 {[%clk
0:03:51.3]} 31. Qb2 {[%clk 0:00:58.7]} 31... Qc6 {[%clk 0:03:49.4]} 32. h4
{[%clk 0:00:37.6]} 32... g5 {[%clk 0:03:47.8]} 33. hxg5 {[%clk 0:00:29.9]} 33...
hxg5 {[%clk 0:03:47.4]} 34. Rb3 {[%clk 0:00:21.5]} 34... Qa6 {[%clk 0:03:44.3]}
35. Ra3 {[%clk 0:00:16.9]} 35... Qc4 {[%clk 0:03:43.1]} 36. Rc3 {[%clk
0:00:14.8]} 36... Qa4 {[%clk 0:03:41.1]} 37. Ra3 {[%clk 0:00:12.4]} 37... Qd1
{[%clk 0:03:40.2]} 38. Rb3 {[%clk 0:00:10.3]} 38... Rh8 {[%clk 0:03:38.1]} 0-1

[Event "Live Chess"]
[Site "Chess.com"]
[Date "2024.06.01"]
[Round "-"]
[White "LL220284LL"]
[Black "KeithArkell"]
[Result "1/2-1/2"]
[WhiteElo "2553"]
[BlackElo "2460"]
[TimeControl "300"]
[EndTime "13:50:25 PDT"]
[Termination "Game drawn by repetition"]

1. e3 {[%clk 0:04:56.4]} 1... c5 {[%clk 0:04:58.5]} 2. b3 {[%clk 0:04:55.7]}
2... d5 {[%clk 0:04:57.2]} 3. Bb2 {[%clk 0:04:55.3]} 3... Nc6 {[%clk 0:04:56.7]}
4. Nf3 {[%clk 0:04:54.9]} 4... Nf6 {[%clk 0:04:55.3]} 5. Be2 {[%clk 0:04:54.4]}
5... g6 {[%clk 0:04:54.8]} 6. O-O {[%clk 0:04:53.7]} 6... Bg7 {[%clk 0:04:54.3]}
7. d3 {[%clk 0:04:53.1]} 7... O-O {[%clk 0:04:53.5]} 8. Nbd2 {[%clk 0:04:52.7]}
8... Re8 {[%clk 0:04:52.6]} 9. Ne5 {[%clk 0:04:52]} 9... Nxe5 {[%clk 0:04:51.5]}
10. Bxe5 {[%clk 0:04:51.9]} 10... Nd7 {[%clk 0:04:48.3]} 11. Bxg7 {[%clk
0:04:50]} 11... Kxg7 {[%clk 0:04:48.2]} 12. Nf3 {[%clk 0:04:48.4]} 12... e5
{[%clk 0:04:47.2]} 13. Qc1 {[%clk 0:04:44.4]} 13... b6 {[%clk 0:04:46.5]} 14.
Qb2 {[%clk 0:04:42.9]} 14... Bb7 {[%clk 0:04:45.6]} 15. Rad1 {[%clk 0:04:40.5]}
15... Qf6 {[%clk 0:04:44.7]} 16. Nd2 {[%clk 0:04:37.4]} 16... Rad8 {[%clk
0:04:43.7]} 17. Bf3 {[%clk 0:04:36]} 17... e4 {[%clk 0:04:38.3]} 18. Qxf6+
{[%clk 0:04:34.2]} 18... Nxf6 {[%clk 0:04:37.7]} 19. dxe4 {[%clk 0:04:32.4]}
19... Nxe4 {[%clk 0:04:34]} 20. Bxe4 {[%clk 0:04:29.7]} 20... dxe4 {[%clk
0:04:33.1]} 21. Nb1 {[%clk 0:04:26.1]} 21... Kf6 {[%clk 0:04:27]} 22. c4 {[%clk
0:04:23.6]} 22... Ke5 {[%clk 0:04:25.8]} 23. Nc3 {[%clk 0:04:23]} 23... Bc6
{[%clk 0:04:20.1]} 24. Rfe1 {[%clk 0:04:21.8]} 24... f5 {[%clk 0:04:18.9]} 25.
g3 {[%clk 0:04:20.5]} 25... g5 {[%clk 0:04:18.3]} 26. Kf1 {[%clk 0:04:18.9]}
26... h5 {[%clk 0:04:14.3]} 27. Ke2 {[%clk 0:04:14.7]} 27... h4 {[%clk
0:04:13.6]} 28. Rxd8 {[%clk 0:04:11.1]} 28... Rxd8 {[%clk 0:04:12.1]} 29. Rd1
{[%clk 0:04:09.4]} 29... Rh8 {[%clk 0:04:09.8]} 30. a3 {[%clk 0:03:44.4]} 30...
a5 {[%clk 0:04:07.1]} 31. Rb1 {[%clk 0:03:40.1]} 31... hxg3 {[%clk 0:04:05.5]}
32. hxg3 {[%clk 0:03:40]} 32... f4 {[%clk 0:04:04.2]} 33. gxf4+ {[%clk
0:03:37.7]} 33... gxf4 {[%clk 0:04:03.7]} 34. exf4+ {[%clk 0:03:36.4]} 34...
Kxf4 {[%clk 0:04:03.6]} 35. Rg1 {[%clk 0:03:30.1]} 35... Rh3 {[%clk 0:03:59.7]}
36. Rg3 {[%clk 0:03:23.1]} 36... Rh6 {[%clk 0:03:36.2]} 37. Rg7 {[%clk 0:03:21]}
37... Rd6 {[%clk 0:03:32.7]} 38. Rb7 {[%clk 0:03:02.9]} 38... Rd3 {[%clk
0:03:09.9]} 39. Rxb6 {[%clk 0:02:57.2]} 39... Rxc3 {[%clk 0:03:09]} 40. Rxc6
{[%clk 0:02:56.1]} 40... Rxb3 {[%clk 0:03:08.4]} 41. Rxc5 {[%clk 0:02:53.6]}
41... Rxa3 {[%clk 0:03:07.7]} 42. Rc8 {[%clk 0:02:51]} 42... Ra2+ {[%clk
0:03:06.9]} 43. Ke1 {[%clk 0:02:49.4]} 43... a4 {[%clk 0:03:04.8]} 44. c5 {[%clk
0:02:45]} 44... Rc2 {[%clk 0:02:57.7]} 45. Ra8 {[%clk 0:02:41.3]} 45... Rc4
{[%clk 0:02:41.3]} 46. c6 {[%clk 0:02:37.7]} 46... Kf3 {[%clk 0:02:40.6]} 47.
Rf8+ {[%clk 0:02:35]} 47... Kg2 {[%clk 0:02:34.5]} 48. Rg8+ {[%clk 0:02:34.3]}
48... Kf3 {[%clk 0:02:33.2]} 49. Rf8+ {[%clk 0:02:33]} 49... Kg4 {[%clk
0:02:32.5]} 50. Ra8 {[%clk 0:02:31.8]} 50... Kf3 {[%clk 0:02:22.1]} 51. Rf8+
{[%clk 0:02:30.2]} 1/2-1/2

[Event "Live Chess"]
[Site "Chess.com"]
[Date "2024.06.01"]
[Round "-"]
[White "Duke_of_Bebington"]
[Black "agamilewska"]
[Result "0-1"]
[WhiteElo "1613"]
[BlackElo "1767"]
[TimeControl "300"]
[EndTime "13:50:47 PDT"]
[Termination "agamilewska won by checkmate"]

1. e4 {[%clk 0:04:57.2]} 1... c5 {[%clk 0:04:58.7]} 2. c3 {[%clk 0:04:55.9]}
2... e6 {[%clk 0:04:58]} 3. d4 {[%clk 0:04:55.1]} 3... cxd4 {[%clk 0:04:57.9]}
4. cxd4 {[%clk 0:04:54.6]} 4... d5 {[%clk 0:04:57.5]} 5. Nd2 {[%clk 0:04:50.8]}
5... dxe4 {[%clk 0:04:54.7]} 6. Nxe4 {[%clk 0:04:49.7]} 6... Nf6 {[%clk
0:04:54.3]} 7. Nxf6+ {[%clk 0:04:44.6]} 7... Qxf6 {[%clk 0:04:52.4]} 8. Nf3
{[%clk 0:04:43.7]} 8... Bb4+ {[%clk 0:04:50.5]} 9. Bd2 {[%clk 0:04:40.9]} 9...
Bxd2+ {[%clk 0:04:49.5]} 10. Qxd2 {[%clk 0:04:40.1]} 10... O-O {[%clk
0:04:47.7]} 11. Bb5 {[%clk 0:04:30.4]} 11... b6 {[%clk 0:04:45.5]} 12. Ne5
{[%clk 0:04:18.6]} 12... Bb7 {[%clk 0:04:42.8]} 13. O-O {[%clk 0:04:16]} 13...
a6 {[%clk 0:04:32.3]} 14. Ba4 {[%clk 0:04:13.5]} 14... b5 {[%clk 0:04:30.3]} 15.
Bc2 {[%clk 0:04:12.4]} 15... Rd8 {[%clk 0:04:26.2]} 16. Qd3 {[%clk 0:04:09.4]}
16... g6 {[%clk 0:04:25]} 17. Rad1 {[%clk 0:04:06.6]} 17... Nc6 {[%clk
0:04:15.2]} 18. Nxc6 {[%clk 0:03:59.6]} 18... Bxc6 {[%clk 0:04:15.1]} 19. Rfe1
{[%clk 0:03:52.2]} 19... Qg5 {[%clk 0:04:12.8]} 20. Qg3 {[%clk 0:03:48]} 20...
Qxg3 {[%clk 0:04:11.3]} 21. hxg3 {[%clk 0:03:47.9]} 21... Rac8 {[%clk 0:04:10]}
22. Bb3 {[%clk 0:03:42.9]} 22... a5 {[%clk 0:04:07]} 23. a3 {[%clk 0:03:41.8]}
23... a4 {[%clk 0:04:06.1]} 24. Ba2 {[%clk 0:03:41.1]} 24... Bd5 {[%clk
0:04:04.5]} 25. Bxd5 {[%clk 0:03:37.3]} 25... Rxd5 {[%clk 0:04:03.8]} 26. Re2
{[%clk 0:03:30.7]} 26... Rc4 {[%clk 0:04:01.3]} 27. Red2 {[%clk 0:03:29.1]}
27... f5 {[%clk 0:03:55.7]} 28. Kf1 {[%clk 0:03:28.2]} 28... Kf7 {[%clk
0:03:54.6]} 29. Ke2 {[%clk 0:03:27.7]} 29... Kf6 {[%clk 0:03:53.2]} 30. Ke3
{[%clk 0:03:20.3]} 30... h5 {[%clk 0:03:50.4]} 31. f4 {[%clk 0:03:05]} 31... g5
{[%clk 0:03:45]} 32. Rh1 {[%clk 0:02:59]} 32... Kg6 {[%clk 0:03:31.9]} 33. Rg1
{[%clk 0:02:35.2]} 33... b4 {[%clk 0:03:27.8]} 34. axb4 {[%clk 0:02:31.6]} 34...
Rxb4 {[%clk 0:03:27.2]} 35. Rc1 {[%clk 0:02:29]} 35... Rb3+ {[%clk 0:03:26]} 36.
Rc3 {[%clk 0:02:27.4]} 36... Rdb5 {[%clk 0:03:08]} 37. Rxb3 {[%clk 0:02:20.7]}
37... Rxb3+ {[%clk 0:03:06.7]} 38. Kf2 {[%clk 0:02:20.1]} 38... gxf4 {[%clk
0:03:02.9]} 39. gxf4 {[%clk 0:02:19]} 39... h4 {[%clk 0:03:02.1]} 40. Kg1 {[%clk
0:02:10.3]} 40... Kh5 {[%clk 0:03:01]} 41. Kh2 {[%clk 0:02:09.3]} 41... Kg4
{[%clk 0:03:00.3]} 42. d5 {[%clk 0:02:01.7]} 42... exd5 {[%clk 0:02:58.1]} 43.
Rxd5 {[%clk 0:02:01.3]} 43... Rxb2 {[%clk 0:02:53.4]} 44. Rd4 {[%clk 0:01:53.4]}
44... a3 {[%clk 0:02:51.1]} 45. Ra4 {[%clk 0:01:52.5]} 45... a2 {[%clk
0:02:49.9]} 46. Ra7 {[%clk 0:01:46.6]} 46... Kxf4 {[%clk 0:02:46.3]} 47. Kh3
{[%clk 0:01:45.9]} 47... Rb1 {[%clk 0:02:35.4]} 48. Rxa2 {[%clk 0:01:43.8]}
48... Rh1# {[%clk 0:02:31.2]} 0-1

[Event "Live Chess"]
[Site "Chess.com"]
[Date "2024.06.01"]
[Round "-"]
[White "Delacorta"]
[Black "Zhevzh1k7"]
[Result "1-0"]
[WhiteElo "1556"]
[BlackElo "1098"]
[TimeControl "300"]
[EndTime "13:50:51 PDT"]
[Termination "Delacorta won on time"]

1. d3 {[%clk 0:04:58.1]} 1... d5 {[%clk 0:04:58]} 2. e4 {[%clk 0:04:54.9]} 2...
dxe4 {[%clk 0:04:56.2]} 3. dxe4 {[%clk 0:04:53.7]} 3... Qxd1+ {[%clk 0:04:55.6]}
4. Kxd1 {[%clk 0:04:53]} 4... Nc6 {[%clk 0:04:53.2]} 5. Nc3 {[%clk 0:04:46.4]}
5... Be6 {[%clk 0:04:50.3]} 6. Nb5 {[%clk 0:04:44.2]} 6... O-O-O+ {[%clk
0:04:48.7]} 7. Bd3 {[%clk 0:04:37.6]} 7... Nf6 {[%clk 0:04:45]} 8. f3 {[%clk
0:04:36.3]} 8... Bc4 {[%clk 0:04:40.3]} 9. Ke2 {[%clk 0:04:31]} 9... Bxd3+
{[%clk 0:04:34.1]} 10. cxd3 {[%clk 0:04:29]} 10... e5 {[%clk 0:04:21.9]} 11. Be3
{[%clk 0:04:27.1]} 11... a6 {[%clk 0:04:12.6]} 12. Nc3 {[%clk 0:04:23.1]} 12...
Bb4 {[%clk 0:04:09.5]} 13. Rc1 {[%clk 0:04:20.3]} 13... Nd4+ {[%clk 0:04:06.2]}
14. Kf2 {[%clk 0:04:18.4]} 14... Bxc3 {[%clk 0:03:39.2]} 15. Rxc3 {[%clk
0:04:08.2]} 15... Nb5 {[%clk 0:03:34.3]} 16. Rc2 {[%clk 0:03:58.3]} 16... Rxd3
{[%clk 0:03:30.2]} 17. Ne2 {[%clk 0:03:52.1]} 17... Rhd8 {[%clk 0:03:25.6]} 18.
Rhc1 {[%clk 0:03:49.2]} 18... c6 {[%clk 0:03:19.6]} 19. Ng3 {[%clk 0:03:35.5]}
19... Nd4 {[%clk 0:03:13.8]} 20. Bxd4 {[%clk 0:03:21.8]} 20... R8xd4 {[%clk
0:03:08.8]} 21. Nf5 {[%clk 0:03:20.4]} 21... Rd2+ {[%clk 0:03:06.5]} 22. Rxd2
{[%clk 0:03:13.2]} 22... Rxd2+ {[%clk 0:03:05.3]} 23. Ke3 {[%clk 0:03:00.3]}
23... Rxg2 {[%clk 0:02:59.2]} 24. h4 {[%clk 0:02:35.6]} 24... g6 {[%clk
0:02:50.1]} 25. Nh6 {[%clk 0:02:26.7]} 25... Rxb2 {[%clk 0:02:40.9]} 26. Nxf7
{[%clk 0:02:25.6]} 26... Rxa2 {[%clk 0:02:37.9]} 27. Nxe5 {[%clk 0:02:24.4]}
27... Ra3+ {[%clk 0:02:31.5]} 28. Kf4 {[%clk 0:02:14.6]} 28... b5 {[%clk
0:02:21.1]} 29. Nxc6 {[%clk 0:02:12.8]} 29... Kd7 {[%clk 0:02:11.6]} 30. Ne5+
{[%clk 0:02:08.7]} 30... Ke6 {[%clk 0:02:09]} 31. Rc6+ {[%clk 0:02:06.4]} 31...
Ke7 {[%clk 0:02:07.3]} 32. Rc7+ {[%clk 0:01:51.6]} 32... Kd6 {[%clk 0:01:57.2]}
33. Rf7 {[%clk 0:01:39.2]} 33... Nh5+ {[%clk 0:01:48.1]} 34. Kg5 {[%clk
0:01:21.5]} 34... Kxe5 {[%clk 0:01:40.1]} 35. Rxh7 {[%clk 0:01:20.6]} 35... Rxf3
{[%clk 0:01:33.5]} 36. Kxg6 {[%clk 0:01:19.3]} 36... Nf6 {[%clk 0:01:26.6]} 37.
Re7+ {[%clk 0:01:09.5]} 37... Kd6 {[%clk 0:01:19]} 38. Rf7 {[%clk 0:00:58.1]}
38... Nd7 {[%clk 0:01:09]} 39. Rxf3 {[%clk 0:00:56.5]} 39... Ne5+ {[%clk
0:01:07.9]} 40. Kg7 {[%clk 0:00:49.3]} 40... Nxf3 {[%clk 0:01:05.8]} 41. h5
{[%clk 0:00:48.6]} 41... b4 {[%clk 0:01:02.3]} 42. h6 {[%clk 0:00:47.5]} 42...
Ng5 {[%clk 0:01:01.6]} 43. Kg6 {[%clk 0:00:46.3]} 43... b3 {[%clk 0:00:54.6]}
44. Kxg5 {[%clk 0:00:45.6]} 44... b2 {[%clk 0:00:53.6]} 45. h7 {[%clk
0:00:44.8]} 45... b1=Q {[%clk 0:00:52.5]} 46. h8=Q {[%clk 0:00:44]} 46... Qg1+
{[%clk 0:00:51.4]} 47. Kf5 {[%clk 0:00:38.4]} 47... Qf2+ {[%clk 0:00:48.3]} 48.
Kg4 {[%clk 0:00:33.2]} 48... Qe2+ {[%clk 0:00:46.6]} 49. Kf5 {[%clk 0:00:28.8]}
49... Qf3+ {[%clk 0:00:39.6]} 50. Kg6 {[%clk 0:00:24.5]} 50... Qxe4+ {[%clk
0:00:37.6]} 51. Kf7 {[%clk 0:00:18.1]} 51... Qe7+ {[%clk 0:00:36.5]} 52. Kg6
{[%clk 0:00:16.8]} 52... Qe4+ {[%clk 0:00:32.9]} 53. Kg5 {[%clk 0:00:14.5]}
53... Qg2+ {[%clk 0:00:31.3]} 54. Kf4 {[%clk 0:00:13.3]} 54... Qd2+ {[%clk
0:00:29.2]} 55. Kf3 {[%clk 0:00:12.4]} 55... Qd1+ {[%clk 0:00:26.8]} 56. Kf4
{[%clk 0:00:11.3]} 56... Qf1+ {[%clk 0:00:25.1]} 57. Ke3 {[%clk 0:00:10.1]}
57... Qe1+ {[%clk 0:00:22.1]} 58. Kf3 {[%clk 0:00:08.8]} 58... Qf1+ {[%clk
0:00:18.8]} 59. Ke3 {[%clk 0:00:08]} 59... Qc1+ {[%clk 0:00:15.5]} 60. Kf3
{[%clk 0:00:07]} 60... Qa3+ {[%clk 0:00:13.1]} 61. Ke2 {[%clk 0:00:06.3]} 61...
Qa2+ {[%clk 0:00:10.9]} 62. Kf3 {[%clk 0:00:05.6]} 62... Qa3+ {[%clk 0:00:08.8]}
63. Kg4 {[%clk 0:00:04.5]} 63... Qb4+ {[%clk 0:00:07.5]} 64. Kg5 {[%clk
0:00:03.2]} 64... Qd2+ {[%clk 0:00:05.6]} 65. Kg6 {[%clk 0:00:02.1]} 65... Qg2+
{[%clk 0:00:04.8]} 66. Kf5 {[%clk 0:00:01.2]} 66... Qf2+ {[%clk 0:00:03.9]} 67.
Ke4 {[%clk 0:00:00.5]} 67... Qe1+ {[%clk 0:00:01.6]} 68. Kf5 {[%clk 0:00:00.4]}
1-0

[Event "Live Chess"]
[Site "Chess.com"]
[Date "2024.06.01"]
[Round "-"]
[White "AndrewBak1"]
[Black "oscalik"]
[Result "0-1"]
[WhiteElo "1848"]
[BlackElo "2345"]
[TimeControl "300"]
[EndTime "13:50:57 PDT"]
[Termination "oscalik won by resignation"]

1. e4 {[%clk 0:04:57.6]} 1... e5 {[%clk 0:04:58.1]} 2. Nf3 {[%clk 0:04:56.7]}
2... Nc6 {[%clk 0:04:57.4]} 3. Bc4 {[%clk 0:04:56.3]} 3... d6 {[%clk 0:04:54.8]}
4. O-O {[%clk 0:04:52.6]} 4... Be6 {[%clk 0:04:35.3]} 5. Bxe6 {[%clk 0:04:50.8]}
5... fxe6 {[%clk 0:04:35.2]} 6. c3 {[%clk 0:04:49.2]} 6... Qd7 {[%clk
0:04:25.9]} 7. d4 {[%clk 0:04:37.1]} 7... exd4 {[%clk 0:04:25.8]} 8. cxd4 {[%clk
0:04:27.8]} 8... O-O-O {[%clk 0:04:24.8]} 9. Nc3 {[%clk 0:04:24.2]} 9... Kb8
{[%clk 0:04:22.8]} 10. d5 {[%clk 0:04:15.9]} 10... Nce7 {[%clk 0:04:15.6]} 11.
Ng5 {[%clk 0:04:05.8]} 11... exd5 {[%clk 0:03:40.7]} 12. Nf7 {[%clk 0:04:02.8]}
12... dxe4 {[%clk 0:03:25]} 13. Nxh8 {[%clk 0:03:56.5]} 13... Qf5 {[%clk
0:03:17.3]} 14. f3 {[%clk 0:03:45.1]} 14... Qc5+ {[%clk 0:03:00.3]} 15. Kh1
{[%clk 0:03:42.8]} 15... e3 {[%clk 0:02:43]} 16. Nf7 {[%clk 0:03:25.3]} 16...
Re8 {[%clk 0:02:41.4]} 17. Ne4 {[%clk 0:03:20.5]} 17... Qh5 {[%clk 0:02:36.3]}
18. Nfxd6 {[%clk 0:02:07.2]} 18... cxd6 {[%clk 0:02:19.3]} 19. Qxd6+ {[%clk
0:02:06.3]} 19... Ka8 {[%clk 0:02:18.6]} 20. Bxe3 {[%clk 0:01:38]} 20... Nd5
{[%clk 0:02:05.1]} 21. Qa3 {[%clk 0:01:31.9]} 21... Bxa3 {[%clk 0:01:58.1]} 0-1

[Event "Live Chess"]
[Site "Chess.com"]
[Date "2024.06.01"]
[Round "-"]
[White "dl_chess"]
[Black "PatientChessPapa"]
[Result "1-0"]
[WhiteElo "1184"]
[BlackElo "802"]
[TimeControl "300"]
[EndTime "13:50:59 PDT"]
[Termination "dl_chess won on time"]

1. e4 {[%clk 0:04:55.8]} 1... e5 {[%clk 0:04:58.4]} 2. Nc3 {[%clk 0:04:54.7]}
2... Nf6 {[%clk 0:04:55.6]} 3. f4 {[%clk 0:04:53.6]} 3... d5 {[%clk 0:04:53.6]}
4. fxe5 {[%clk 0:04:43.6]} 4... Nxe4 {[%clk 0:04:51.8]} 5. Qf3 {[%clk
0:04:42.4]} 5... Nc6 {[%clk 0:04:47.4]} 6. Nxe4 {[%clk 0:04:37.4]} 6... Nd4
{[%clk 0:04:43.8]} 7. Qc3 {[%clk 0:04:36.2]} 7... dxe4 {[%clk 0:04:38.4]} 8. Ne2
{[%clk 0:04:30.3]} 8... c5 {[%clk 0:04:00.6]} 9. d3 {[%clk 0:03:47.6]} 9... exd3
{[%clk 0:03:49.5]} 10. cxd3 {[%clk 0:03:45.6]} 10... Be7 {[%clk 0:03:34.8]} 11.
Be3 {[%clk 0:03:17.5]} 11... Ne6 {[%clk 0:02:46.1]} 12. Ng3 {[%clk 0:03:00.9]}
12... b6 {[%clk 0:01:27]} 13. Be2 {[%clk 0:02:59.1]} 13... O-O {[%clk
0:01:22.8]} 14. O-O {[%clk 0:02:57.7]} 14... Nd4 {[%clk 0:01:05.4]} 15. Bxd4
{[%clk 0:02:40]} 15... cxd4 {[%clk 0:01:03.8]} 16. Qc2 {[%clk 0:02:15.9]} 16...
Bb7 {[%clk 0:01:00.5]} 17. Rac1 {[%clk 0:02:08.3]} 17... Qd5 {[%clk 0:00:53.4]}
18. Bf3 {[%clk 0:01:54.5]} 18... Qd7 {[%clk 0:00:37.5]} 19. Qe2 {[%clk
0:01:43.6]} 19... Bh4 {[%clk 0:00:08.6]} 20. Bxb7 {[%clk 0:01:23.3]} 20... Qxb7
{[%clk 0:00:06.7]} 21. Qg4 {[%clk 0:01:16.8]} 21... Bxg3 {[%clk 0:00:04.9]} 22.
Qxg3 {[%clk 0:01:15.3]} 22... Rfe8 {[%clk 0:00:03.1]} 23. Rce1 {[%clk
0:01:03.2]} 1-0

[Event "Live Chess"]
[Site "Chess.com"]
[Date "2024.06.01"]
[Round "-"]
[White "Ferrarifan27"]
[Black "McFim"]
[Result "1-0"]
[WhiteElo "2060"]
[BlackElo "1588"]
[TimeControl "300"]
[EndTime "13:51:21 PDT"]
[Termination "Ferrarifan27 won by resignation"]

1. e4 {[%clk 0:04:51.9]} 1... c6 {[%clk 0:04:58.8]} 2. d4 {[%clk 0:04:49.5]}
2... d5 {[%clk 0:04:58.4]} 3. e5 {[%clk 0:04:46.6]} 3... Bf5 {[%clk 0:04:56.8]}
4. h4 {[%clk 0:04:43.9]} 4... h5 {[%clk 0:04:46.7]} 5. Bg5 {[%clk 0:04:41.4]}
5... Qd7 {[%clk 0:04:43.3]} 6. Nf3 {[%clk 0:04:34.9]} 6... e6 {[%clk 0:04:41.4]}
7. Bd3 {[%clk 0:04:33]} 7... Bxd3 {[%clk 0:04:38.1]} 8. Qxd3 {[%clk 0:04:32.9]}
8... g6 {[%clk 0:04:37]} 9. O-O {[%clk 0:04:30.4]} 9... Ne7 {[%clk 0:04:33.3]}
10. Nbd2 {[%clk 0:04:28.6]} 10... a6 {[%clk 0:04:30.5]} 11. Bf6 {[%clk
0:04:27.7]} 11... Rg8 {[%clk 0:04:28.1]} 12. c4 {[%clk 0:04:21.3]} 12... dxc4
{[%clk 0:04:24.6]} 13. Nxc4 {[%clk 0:04:19.8]} 13... Nf5 {[%clk 0:04:23.8]} 14.
Nb6 {[%clk 0:04:03.8]} 1-0

[Event "Live Chess"]
[Site "Chess.com"]
[Date "2024.06.01"]
[Round "-"]
[White "jk0110"]
[Black "cymbalshift"]
[Result "1-0"]
[WhiteElo "1236"]
[BlackElo "1521"]
[TimeControl "300"]
[EndTime "13:51:26 PDT"]
[Termination "jk0110 won by resignation"]

1. e4 {[%clk 0:04:57.9]} 1... e5 {[%clk 0:04:58.8]} 2. Nf3 {[%clk 0:04:55.9]}
2... Nc6 {[%clk 0:04:57.7]} 3. d4 {[%clk 0:04:54.8]} 3... exd4 {[%clk
0:04:56.3]} 4. Bc4 {[%clk 0:04:53.9]} 4... Nf6 {[%clk 0:04:51.7]} 5. O-O {[%clk
0:04:48.6]} 5... Nxe4 {[%clk 0:04:44.6]} 6. Nc3 {[%clk 0:04:23.9]} 6... dxc3
{[%clk 0:04:39.1]} 7. Bxf7+ {[%clk 0:04:19.8]} 7... Kxf7 {[%clk 0:04:37.7]} 8.
Qd5+ {[%clk 0:04:18.6]} 8... Kf6 {[%clk 0:04:28.1]} 9. Qxe4 {[%clk 0:04:11]}
9... d5 {[%clk 0:04:26.7]} 10. Bg5+ {[%clk 0:04:07]} 10... Kf7 {[%clk
0:04:17.3]} 11. Qf4+ {[%clk 0:03:57.3]} 1-0

[Event "Live Chess"]
[Site "Chess.com"]
[Date "2024.06.01"]
[Round "-"]
[White "Sweet-O"]
[Black "GEMdzq"]
[Result "0-1"]
[WhiteElo "1549"]
[BlackElo "2319"]
[TimeControl "300"]
[EndTime "13:51:46 PDT"]
[Termination "GEMdzq won by resignation"]

1. d4 {[%clk 0:04:58.2]} 1... Nf6 {[%clk 0:04:58.5]} 2. Nc3 {[%clk 0:04:58.1]}
2... e6 {[%clk 0:04:54.9]} 3. Bf4 {[%clk 0:04:57.5]} 3... c5 {[%clk 0:04:53.8]}
4. d5 {[%clk 0:04:55.5]} 4... exd5 {[%clk 0:04:48.3]} 5. Nxd5 {[%clk 0:04:55.4]}
5... Nxd5 {[%clk 0:04:47.4]} 6. Qxd5 {[%clk 0:04:55.3]} 6... Nc6 {[%clk
0:04:45.5]} 7. e4 {[%clk 0:04:51.9]} 7... d6 {[%clk 0:04:44.5]} 8. Bc4 {[%clk
0:04:50.2]} 8... Be6 {[%clk 0:04:43]} 9. Qd3 {[%clk 0:04:43.7]} 9... Be7 {[%clk
0:04:36.7]} 10. O-O-O {[%clk 0:04:40.2]} 10... O-O {[%clk 0:04:28.5]} 11. Bxd6
{[%clk 0:04:37]} 11... Bxd6 {[%clk 0:04:25.8]} 12. Bxe6 {[%clk 0:04:32]} 12...
Bf4+ {[%clk 0:04:23.4]} 13. Kb1 {[%clk 0:04:24.7]} 13... fxe6 {[%clk 0:04:15.7]}
14. Qe2 {[%clk 0:04:23.4]} 14... Nd4 {[%clk 0:04:11]} 15. Qg4 {[%clk 0:04:12.6]}
15... Qf6 {[%clk 0:04:03.2]} 16. c3 {[%clk 0:04:08]} 16... Nc6 {[%clk
0:04:01.5]} 17. Nf3 {[%clk 0:04:00.6]} 17... Rad8 {[%clk 0:03:55.2]} 18. g3
{[%clk 0:03:58.2]} 18... Bh6 {[%clk 0:03:49.3]} 19. Nh4 {[%clk 0:03:37.9]} 19...
Rxd1+ {[%clk 0:03:45.1]} 20. Rxd1 {[%clk 0:03:36.2]} 20... Ne5 {[%clk
0:03:44.4]} 21. Qe2 {[%clk 0:03:29.5]} 21... Qxf2 {[%clk 0:03:40.6]} 22. Qb5
{[%clk 0:03:22.3]} 22... b6 {[%clk 0:03:34.3]} 23. Qb3 {[%clk 0:03:10.4]} 23...
c4 {[%clk 0:03:31.4]} 24. Qb5 {[%clk 0:03:06.2]} 24... Nd3 {[%clk 0:03:24.8]}
25. a4 {[%clk 0:02:15.9]} 25... a6 {[%clk 0:03:16.6]} 26. Qxb6 {[%clk
0:02:11.4]} 26... Qxb6 {[%clk 0:03:14.5]} 0-1